fUST/lending_fUST_20241229
["ID","MTS","AMOUNT","RATE_DAILY","PERIOD"]
[347022949,1735471852576,-500.0,0.00011722,2]
[347022951,1735471852585,-500.0,0.00011725,2]
[347022953,1735471852594,-500.0,0.00011725,2]
[347022955,1735471852603,-500.0,0.00011725,2]
[347022957,1735471852613,-500.0,0.00011725,2]
[347022959,1735471852623,-500.0,0.00011725,2]
[347022961,1735471852633,-500.0,0.00011725,2]
[347022963,1735471852642,-385.1882697,0.00011725,2]
[347022965,1735471852651,-348.88489242,0.00011725,2]
[347022967,1735471852660,-500.0,0.00011725,2]
[347022969,1735471852670,-611.96981022,0.00011725,2]
[347022971,1735471852679,-500.0,0.00011726,2]
[347022973,1735471852688,-500.0,0.00011728,2]
[347022975,1735471852698,-500.0,0.00011728,2]
[347022977,1735471852708,-3313.91,0.0001173,2]
[347022979,1735471852718,-500.0,0.00011731,2]
[347022980,1735471852727,-151.0,0.00011732,2]
[347022981,1735471852737,-151.0,0.00011732,2]
[347022982,1735471852746,-151.0,0.00011732,2]
[347022983,1735471852756,-382.696265,0.00011732,2]
[347022984,1735471852766,-382.696265,0.00011732,2]
[347022985,1735471852775,-3781.35,0.00011732,2]
[347022986,1735471852785,-9958.51930916,0.00011764,2]
[347022987,1735471852795,-151.0,0.0001178,2]
[347022988,1735471852805,-162.320765,0.0001178,2]
[347022989,1735471852815,-673.655053,0.0001178,2]
[347022990,1735471852825,-162.320765,0.0001178,2]
[347022991,1735471852835,-673.655053,0.0001178,2]
[347022992,1735471852844,-151.0,0.000118,2]
[347022993,1735471852854,-6101.96351348,0.000118,2]
[347022994,1735471852864,-349.4688288,0.0001188,2]
[347022995,1735471852873,-151.0,0.000119,2]
[347022996,1735471852884,-250.69798575,0.000119,2]
[347022997,1735471852893,-500.0,0.00011973,2]
[347022998,1735471852903,-500.0,0.00011991,2]
[347022999,1735471852912,-1277.31,0.00011991,2]
[347023000,1735471852922,-500.0,0.00011991,2]
[347023001,1735471852932,-500.0,0.00011991,2]
[347023002,1735471852941,-500.0,0.00011992,2]
[347023003,1735471852951,-1607.48,0.00011992,2]
[347023004,1735471852960,-794.56,0.00011992,2]
[347023005,1735471852970,-593.87,0.00011992,2]
[347023006,1735471852979,-500.0,0.00011994,2]
[347023007,1735471852989,-500.0,0.00011994,2]
[347023008,1735471852999,-500.0,0.00011994,2]
[347023009,1735471853008,-500.0,0.00011994,2]
[347023010,1735471853018,-500.0,0.00011994,2]
[347023011,1735471853027,-155.04,0.00011994,2]
[347023013,1735471853037,-500.0,0.00011994,2]
[347023014,1735471853113,-500.0,0.00011994,2]
[347023015,1735471853123,-500.0,0.00011994,2]
[347023016,1735471853133,-500.0,0.00011994,2]
[347023017,1735471853142,-500.0,0.00011994,2]
[347023018,1735471853152,-761.79,0.00011994,2]
[347023019,1735471853162,-500.0,0.00011994,2]
[347023020,1735471853171,-538.02,0.00011994,2]
[347023021,1735471853180,-706.3,0.00011994,2]
[347023022,1735471853189,-684.0,0.00011994,2]
[347023023,1735471853199,-671.98,0.00011994,2]
[347023024,1735471853208,-500.0,0.00011994,2]
[347023025,1735471853218,-513.52,0.00011994,2]
[347023026,1735471853227,-617.51,0.00011994,2]
[347023027,1735471853236,-500.0,0.00011994,2]
[347023028,1735471853246,-500.0,0.00011994,2]
[347023029,1735471853255,-500.0,0.00011994,2]
[347023030,1735471853264,-2089.57,0.00011996,2]
[347023031,1735471853273,-500.0,0.00011996,2]
[347023032,1735471853282,-500.0,0.00011996,2]
[347023033,1735471853292,-16402.83,0.00011996,2]
[347023034,1735471853301,-500.0,0.00011996,2]
[347023035,1735471853311,-500.0,0.00011996,2]
[347023036,1735471853321,-500.0,0.00011996,2]
[347023037,1735471853331,-500.0,0.00011996,2]
[347023038,1735471853341,-289.82689427,0.00011996,2]
[347023039,1735471853352,-3025.71,0.00011997,2]
[347023040,1735471853362,-151.0,0.00011999,2]
[347023041,1735471853371,-156.995781,0.00011999,2]
[347023042,1735471853381,-156.995781,0.00011999,2]
[347023043,1735471853390,-151.0,0.00011999,2]
[347023044,1735471853400,-151.0,0.00011999,2]
[347023045,1735471853409,-151.0,0.00011999,2]
[347023046,1735471853419,-500.0,0.00011999,2]
[347023047,1735471853429,-500.0,0.00011999,2]
[347023048,1735471853438,-500.0,0.00011999,2]
[347023049,1735471853448,-500.0,0.00011999,2]
[347023050,1735471853457,-500.0,0.00011999,2]
[347023051,1735471853466,-3025.71,0.00011999,2]
[347023052,1735471853481,-3025.71,0.00011999,2]
[347023053,1735471853491,-3025.71,0.00011999,2]
[347023054,1735471853500,-3025.71,0.00011999,2]
[347023055,1735471853509,-151.88518,0.00011999,2]
[347023056,1735471853520,-3025.71,0.00011999,2]
[347023057,1735471853529,-3025.71,0.00011999,2]
[347023058,1735471853539,-168.029678,0.00011999,2]
[347023059,1735471853549,-3025.71,0.00011999,2]
[347023060,1735471853558,-3025.71,0.00011999,2]
[347023061,1735471853568,-3025.71,0.00011999,2]
[347023062,1735471853578,-3025.71,0.00011999,2]
[347023063,1735471853587,-168.029678,0.00011999,2]
[347023064,1735471853598,-3025.71,0.00011999,2]
[347023065,1735471853607,-3025.71,0.00011999,2]
[347023066,1735471853616,-3025.71,0.00011999,2]
[347023067,1735471853625,-3025.79,0.00011999,2]
[347023068,1735471853634,-586.821921,0.00011999,2]
[347023069,1735471853644,-586.821921,0.00011999,2]
[347023070,1735471853653,-500.0,0.00011999,2]
[347023071,1735471853662,-151.0,0.00011999,2]
[347023072,1735471853671,-440.426877,0.00011999,2]
[347023073,1735471853680,-440.426877,0.00011999,2]
[347023074,1735471853689,-9094.569066,0.00012,2]
[347023075,1735471853699,-38584.38676166,0.00012,2]
[347023076,1735471853708,-124266.12608076,0.00012,2]
[347023077,1735471853801,-15279.197981,0.00012,2]
[347023078,1735471853812,-9880.7,0.00012,2]
[347023079,1735471853824,-1614.445,0.00012,2]
[347023080,1735471853976,-500.0,9.25e-05,2]
[347023081,1735471853986,-500.0,9.25e-05,2]
[347023082,1735471853996,-500.0,9.25e-05,2]
[347023083,1735471854006,-500.0,9.25e-05,2]
[347023084,1735471854016,-335.71385976,9.25e-05,2]
[347023085,1735471854025,-268.69311089,9.25e-05,2]
[347023086,1735471854035,-500.0,9.799e-05,2]
[347023087,1735471854044,-500.0,0.00010073,2]
[347023088,1735471854054,-322.46918524,0.00010347,2]
[347023089,1735471854063,-500.0,0.00010635,2]
[347023090,1735471854074,-45996.70088508,0.00012,2]
[347023091,1735471854087,-39514.1878,0.00012,2]
[347023092,1735471854308,-252.87346695,0.00010909,2]
[347023093,1735471854320,-247.12653305,0.00010909,2]
[347023094,1735471854329,-151.0,0.00010959,2]
[347023095,1735471854338,-151.0,0.00010959,2]
[347023096,1735471854348,-500.0,0.00011183,2]
[347023097,1735471854357,-500.0,0.00011457,2]
[347023098,1735471854367,-151.0,0.00011458,2]
[347023099,1735471854376,-500.0,0.00011731,2]
[347023100,1735471854385,-35742.68737785,0.00012,2]
[347023102,1735472116779,-193.5621298,9.066e-05,2]
[347023103,1735472116803,-193.5621298,9.158e-05,2]
[347023104,1735472116827,-300.0,9.25e-05,2]
[347023105,1735472116850,-500.0,9.251e-05,2]
[347023106,1735472116874,-500.0,9.251e-05,2]
[347023107,1735472116897,-500.0,9.251e-05,2]
[347023108,1735472116924,-891.99,9.251e-05,2]
[347023109,1735472116948,-500.0,9.251e-05,2]
[347023110,1735472116970,-500.0,9.251e-05,2]
[347023111,1735472116994,-500.0,9.251e-05,2]
[347023112,1735472117016,-500.0,9.251e-05,2]
[347023113,1735472117039,-500.0,9.251e-05,2]
[347023114,1735472117065,-500.0,9.251e-05,2]
[347023115,1735472117089,-500.0,9.251e-05,2]
[347023116,1735472117112,-505.51092424,9.251e-05,2]
[347023117,1735472117135,-500.0,9.251e-05,2]
[347023118,1735472117160,-500.0,9.251e-05,2]
[347023119,1735472117185,-500.0,9.251e-05,2]
[347023120,1735472117210,-500.0,9.251e-05,2]
[347023121,1735472117234,-500.0,9.251e-05,2]
[347023122,1735472117259,-500.0,9.251e-05,2]
[347023123,1735472117284,-500.0,9.251e-05,2]
[347023124,1735472117310,-500.0,9.251e-05,2]
[347023125,1735472117334,-500.0,9.251e-05,2]
[347023126,1735472117358,-262.87159526,9.251e-05,2]
[347023127,1735472117382,-500.0,9.251e-05,2]
[347023128,1735472117405,-500.0,9.251e-05,2]
[347023129,1735472117428,-500.0,9.251e-05,2]
[347023130,1735472117453,-500.0,9.251e-05,2]
[347023131,1735472117572,-500.0,9.252e-05,2]
[347023132,1735472117602,-500.0,9.252e-05,2]
[347023133,1735472117627,-500.0,9.252e-05,2]
[347023134,1735472117650,-500.0,9.252e-05,2]
[347023135,1735472117677,-500.0,9.252e-05,2]
[347023136,1735472117700,-500.0,9.252e-05,2]
[347023137,1735472117724,-500.0,9.252e-05,2]
[347023138,1735472117750,-500.0,9.252e-05,2]
[347023139,1735472117773,-500.0,9.252e-05,2]
[347023140,1735472117799,-9272.05,9.252e-05,2]
[347023141,1735472117822,-500.0,9.253e-05,2]
[347023142,1735472117844,-500.69961395,9.253e-05,2]
[347023143,1735472117870,-502.07705467,9.253e-05,2]
[347023144,1735472117892,-502.76069191,9.253e-05,2]
[347023145,1735472117913,-501.51902783,9.253e-05,2]
[347023146,1735472117936,-500.0,9.254e-05,2]
[347023147,1735472117960,-500.0,9.254e-05,2]
[347023148,1735472117986,-500.0,9.254e-05,2]
[347023149,1735472118011,-500.0,9.254e-05,2]
[347023150,1735472118036,-500.0,9.254e-05,2]
[347023151,1735472118061,-500.0,9.254e-05,2]
[347023152,1735472118087,-500.0,9.254e-05,2]
[347023153,1735472118109,-500.0,9.254e-05,2]
[347023154,1735472118132,-500.0,9.254e-05,2]
[347023155,1735472118155,-500.0,9.254e-05,2]
[347023156,1735472118178,-500.0,9.254e-05,2]
[347023157,1735472118201,-500.0,9.254e-05,2]
[347023158,1735472118225,-500.0,9.254e-05,2]
[347023159,1735472118249,-500.0,9.254e-05,2]
[347023160,1735472118272,-500.0,9.254e-05,2]
[347023161,1735472118295,-500.0,9.254e-05,2]
[347023162,1735472118318,-500.0,9.254e-05,2]
[347023163,1735472118340,-440.37149037,9.254e-05,2]
[347023164,1735472118362,-500.0,9.254e-05,2]
[347023165,1735472118385,-500.0,9.254e-05,2]
[347023166,1735472118409,-500.34990809,9.254e-05,2]
[347023167,1735472118433,-500.0,9.254e-05,2]
[347023168,1735472118455,-500.0,9.254e-05,2]
[347023169,1735472118479,-500.0,9.254e-05,2]
[347023170,1735472118503,-500.0,9.254e-05,2]
[347023171,1735472118526,-500.0,9.254e-05,2]
[347023172,1735472118550,-500.0,9.254e-05,2]
[347023173,1735472118574,-500.0,9.254e-05,2]
[347023174,1735472118601,-500.0,9.254e-05,2]
[347023175,1735472118623,-500.0,9.254e-05,2]
[347023176,1735472118646,-500.0,9.254e-05,2]
[347023177,1735472118670,-500.0,9.254e-05,2]
[347023178,1735472118693,-500.0,9.254e-05,2]
[347023179,1735472118716,-500.0,9.254e-05,2]
[347023180,1735472118738,-500.0,9.254e-05,2]
[347023181,1735472118760,-500.0,9.254e-05,2]
[347023182,1735472118783,-500.0,9.254e-05,2]
[347023183,1735472118809,-500.0,9.255e-05,2]
[347023184,1735472118833,-500.0,9.256e-05,2]
[347023185,1735472118856,-500.0,9.256e-05,2]
[347023186,1735472118880,-500.0,9.256e-05,2]
[347023187,1735472118904,-500.0,9.256e-05,2]
[347023188,1735472118928,-500.0,9.256e-05,2]
[347023189,1735472118951,-500.0,9.256e-05,2]
[347023190,1735472118975,-2293.97,9.256e-05,2]
[347023191,1735472118998,-500.0,9.259e-05,2]
[347023192,1735472119021,-500.0,9.259e-05,2]
[347023193,1735472119044,-500.0,9.259e-05,2]
[347023194,1735472119071,-500.0,9.259e-05,2]
[347023195,1735472119094,-500.0,9.259e-05,2]
[347023196,1735472119119,-500.0,9.259e-05,2]
[347023197,1735472119143,-2293.97,9.259e-05,2]
[347023198,1735472119168,-2293.97,9.259e-05,2]
[347023199,1735472119192,-2293.97,9.259e-05,2]
[347023200,1735472119216,-2293.97,9.261e-05,2]
[347023201,1735472119240,-500.0,9.262e-05,2]
[347023202,1735472119264,-2293.97,9.262e-05,2]
[347023203,1735472119289,-2293.97,9.263e-05,2]
[347023204,1735472119315,-2293.97,9.264e-05,2]
[347023205,1735472119339,-2293.97,9.264e-05,2]
[347023206,1735472119363,-2293.97,9.264e-05,2]
[347023207,1735472119389,-2345.32,9.265e-05,2]
[347023208,1735472119413,-2293.97,9.265e-05,2]
[347023209,1735472119437,-500.0,9.525e-05,2]
[347023210,1735472119461,-500.0,9.525e-05,2]
[347023211,1735472119485,-500.0,9.525e-05,2]
[347023212,1735472119512,-891.99,9.525e-05,2]
[347023213,1735472119537,-500.0,9.525e-05,2]
[347023214,1735472119561,-500.0,9.525e-05,2]
[347023215,1735472119588,-500.0,9.525e-05,2]
[347023216,1735472119612,-500.0,9.525e-05,2]
[347023217,1735472119639,-500.0,9.525e-05,2]
[347023218,1735472119665,-500.0,9.525e-05,2]
[347023219,1735472119690,-500.0,9.525e-05,2]
[347023220,1735472119716,-500.0,9.525e-05,2]
[347023221,1735472119741,-500.0,9.525e-05,2]
[347023222,1735472119767,-500.0,9.525e-05,2]
[347023223,1735472119790,-500.0,9.525e-05,2]
[347023224,1735472119814,-541.38,9.525e-05,2]
[347023225,1735472119839,-500.0,9.525e-05,2]
[347023226,1735472119863,-500.0,9.525e-05,2]
[347023227,1735472119889,-500.0,9.525e-05,2]
[347023228,1735472119912,-500.0,9.525e-05,2]
[347023229,1735472119935,-500.0,9.525e-05,2]
[347023230,1735472119958,-500.0,9.525e-05,2]
[347023231,1735472119982,-500.0,9.525e-05,2]
[347023232,1735472120007,-500.0,9.526e-05,2]
[347023233,1735472120040,-500.0,9.526e-05,2]
[347023234,1735472120069,-500.0,9.526e-05,2]
[347023235,1735472120094,-500.0,9.526e-05,2]
[347023236,1735472120119,-500.0,9.526e-05,2]
[347023237,1735472120144,-500.0,9.526e-05,2]
[347023238,1735472120169,-500.0,9.526e-05,2]
[347023239,1735472120193,-500.0,9.526e-05,2]
[347023240,1735472120218,-500.0,9.526e-05,2]
[347023241,1735472120246,-9272.05,9.526e-05,2]
[347023242,1735472120270,-500.0,9.528e-05,2]
[347023243,1735472120294,-500.0,9.528e-05,2]
[347023244,1735472120320,-500.0,9.528e-05,2]
[347023245,1735472120463,-500.0,9.528e-05,2]
[347023246,1735472120488,-500.0,9.528e-05,2]
[347023247,1735472120513,-238.86029852,9.528e-05,2]
[347023248,1735472120538,-500.0,9.528e-05,2]
[347023249,1735472120563,-500.0,9.528e-05,2]
[347023250,1735472120588,-500.0,9.528e-05,2]
[347023251,1735472120617,-500.0,9.528e-05,2]
[347023252,1735472120643,-500.0,9.528e-05,2]
[347023253,1735472120671,-152.97720006,9.528e-05,2]
[347023254,1735472120695,-500.0,9.528e-05,2]
[347023255,1735472120720,-500.0,9.528e-05,2]
[347023256,1735472120746,-500.0,9.528e-05,2]
[347023257,1735472120771,-500.0,9.528e-05,2]
[347023258,1735472120794,-500.0,9.528e-05,2]
[347023259,1735472120820,-500.0,9.528e-05,2]
[347023260,1735472120843,-500.0,9.528e-05,2]
[347023261,1735472120866,-577.76947593,9.528e-05,2]
[347023262,1735472120891,-500.0,9.53e-05,2]
[347023263,1735472120918,-500.0,9.53e-05,2]
[347023264,1735472120942,-500.0,9.53e-05,2]
[347023265,1735472120966,-500.0,9.53e-05,2]
[347023266,1735472120990,-2293.97,9.531e-05,2]
[347023267,1735472121016,-500.0,9.533e-05,2]
[347023268,1735472121041,-500.0,9.533e-05,2]
[347023269,1735472121065,-500.0,9.533e-05,2]
[347023270,1735472121091,-2293.97,9.533e-05,2]
[347023271,1735472121119,-2293.97,9.533e-05,2]
[347023272,1735472121143,-2293.97,9.536e-05,2]
[347023273,1735472121166,-299.15804767,9.536e-05,2]
[347023274,1735472121190,-2293.97,9.537e-05,2]
[347023275,1735472121213,-2293.97,9.538e-05,2]
[347023276,1735472121238,-248.30114065,9.538e-05,2]
[347023277,1735472121264,-2345.32,9.539e-05,2]
[347023278,1735472121287,-500.0,9.799e-05,2]
[347023279,1735472121313,-891.99,9.799e-05,2]
[347023280,1735472121337,-500.0,9.799e-05,2]
[347023281,1735472121360,-500.0,9.799e-05,2]
[347023282,1735472121385,-500.0,9.799e-05,2]
[347023283,1735472121409,-502.12171951,9.799e-05,2]
[347023284,1735472121435,-500.0,9.799e-05,2]
[347023285,1735472121460,-500.0,9.799e-05,2]
[347023286,1735472121485,-500.0,9.799e-05,2]
[347023287,1735472121510,-500.0,9.799e-05,2]
[347023288,1735472121535,-500.0,9.799e-05,2]
[347023289,1735472121560,-500.0,9.799e-05,2]
[347023290,1735472121589,-500.0,9.799e-05,2]
[347023291,1735472121612,-541.37097843,9.799e-05,2]
[347023292,1735472121637,-500.0,9.799e-05,2]
[347023293,1735472121661,-500.0,9.799e-05,2]
[347023294,1735472121686,-500.0,9.799e-05,2]
[347023295,1735472121712,-500.0,9.8e-05,2]
[347023296,1735472121738,-500.0,9.8e-05,2]
[347023297,1735472121764,-500.0,9.8e-05,2]
[347023298,1735472121787,-500.0,9.8e-05,2]
[347023299,1735472121812,-500.0,9.8e-05,2]
[347023300,1735472121837,-86.57657331,9.8e-05,2]
[347023301,1735472124606,161.3218,8.602e-05,2]
[347023302,1735472124818,161.3218,8.645e-05,2]
[347023304,1735472190583,9677.3564,8.553e-05,2]
[347023305,1735472190617,10000.0,8.553e-05,2]
[347023306,1735472190653,5222.6436,8.553e-05,2]
[347023308,1735472297413,177.7651895,8.432e-05,2]
[347023309,1735472317143,1184.83037473,8.975e-05,2]
[347023310,1735472351962,530.1316638,8.303e-05,2]
[347023317,1735472502227,1184.83037473,8.975e-05,2]
[347023319,1735472574557,250.0,8.334e-05,2]
[347023320,1735472755131,-300.0,9.065e-05,2]
[347023321,1735472755153,-300.0,9.157e-05,2]
[347023322,1735472755174,-300.0,9.249e-05,2]
[347023323,1735472755195,-538.34344337,9.25e-05,2]
[347023324,1735472755215,-500.0,9.25e-05,2]
[347023325,1735472755235,-500.0,9.25e-05,2]
[347023326,1735472755256,-466.80030358,9.25e-05,2]
[347023327,1735472757088,-33.19969642,9.25e-05,2]
[347023328,1735472757111,-500.0,9.25e-05,2]
[347023329,1735472757137,-96.2654198,9.25e-05,2]
[347023330,1735472822285,1000.0,0.00025,120]
[347023331,1735472841120,-181.47132133,9.066e-05,2]
[347023332,1735472844121,-277.99055866,9.066e-05,2]
[347023333,1735472847110,-818.06217404,9.066e-05,2]
[347023334,1735472847132,-196.29230372,9.158e-05,2]
[347023335,1735472848098,-1081.23175031,9.158e-05,2]
[347023336,1735472848120,-300.0,9.249e-05,2]
[347023337,1735472848144,-163.03385575,9.25e-05,2]
[347023338,1735472867875,1449.79879724,8.254e-05,2]
[347023339,1735472867908,2787.24688666,8.254e-05,2]
[347023340,1735472878122,2632.9900935,8.321e-05,2]
[347023341,1735472881281,4579.76301984,8.255e-05,2]
[347023342,1735472881313,189.12105786,8.255e-05,2]
[347023343,1735472957834,419.8800084,8.253e-05,2]
[347023382,1735473033128,-382.78832688,9.158e-05,2]
[347023384,1735473033139,-336.96614425,9.25e-05,2]
[347023386,1735473033150,-500.0,9.25e-05,2]
[347023388,1735473033161,-500.0,9.25e-05,2]
[347023390,1735473033173,-500.0,9.25e-05,2]
[347023392,1735473033184,-500.0,9.25e-05,2]
[347023394,1735473033198,-500.0,9.25e-05,2]
[347023396,1735473033210,-500.0,9.25e-05,2]
[347023397,1735473033221,-500.0,9.25e-05,2]
[347023398,1735473033232,-500.0,9.25e-05,2]
[347023400,1735473033243,-500.0,9.25e-05,2]
[347023421,1735473033255,-500.0,9.25e-05,2]
[347023423,1735473033406,-500.0,9.25e-05,2]
[347023425,1735473033416,-362.81569943,9.25e-05,2]
[347023427,1735473033442,-137.18430057,9.25e-05,2]
[347023428,1735473033452,-500.0,9.25e-05,2]
[347023429,1735473033463,-500.0,9.25e-05,2]
[347023431,1735473033473,-500.0,9.25e-05,2]
[347023432,1735473033483,-500.0,9.25e-05,2]
[347023433,1735473033493,-500.0,9.25e-05,2]
[347023434,1735473033504,-500.0,9.25e-05,2]
[347023436,1735473033513,-518.76,9.25e-05,2]
[347023437,1735473033523,-500.0,9.25e-05,2]
[347023438,1735473033533,-285.51559659,9.25e-05,2]
[347023439,1735473033544,-500.0,9.25e-05,2]
[347023440,1735473033555,-500.0,9.25e-05,2]
[347023441,1735473033567,-500.0,9.25e-05,2]
[347023442,1735473033578,-500.0,9.25e-05,2]
[347023443,1735473033588,-571.39,9.25e-05,2]
[347023444,1735473033598,-1069.67,9.25e-05,2]
[347023445,1735473033607,-102.68192835,9.25e-05,2]
[347023463,1735473038628,-397.31807165,9.25e-05,2]
[347023464,1735473038638,-500.0,9.25e-05,2]
[347023465,1735473038647,-330.87375751,9.25e-05,2]
[347023466,1735473038656,-500.0,9.25e-05,2]
[347023467,1735473038665,-500.0,9.25e-05,2]
[347023468,1735473038674,-500.0,9.25e-05,2]
[347023469,1735473038684,-500.0,9.25e-05,2]
[347023470,1735473038693,-500.0,9.25e-05,2]
[347023471,1735473038702,-626.02175958,9.25e-05,2]
[347023472,1735473038711,-500.0,9.25e-05,2]
[347023473,1735473038721,-500.0,9.25e-05,2]
[347023474,1735473038730,-500.0,9.25e-05,2]
[347023475,1735473038739,-265.44283097,9.25e-05,2]
[347023476,1735473038748,-501.73266881,9.25e-05,2]
[347023477,1735473038757,-500.0,9.25e-05,2]
[347023478,1735473038766,-541.98,9.25e-05,2]
[347023479,1735473038775,-500.0,9.25e-05,2]
[347023480,1735473038784,-500.0,9.25e-05,2]
[347023481,1735473038793,-500.0,9.25e-05,2]
[347023482,1735473038802,-500.0,9.25e-05,2]
[347023483,1735473038811,-500.0,9.25e-05,2]
[347023484,1735473038821,-500.0,9.25e-05,2]
[347023485,1735473038830,-500.0,9.25e-05,2]
[347023486,1735473038839,-521.41,9.25e-05,2]
[347023487,1735473038848,-500.0,9.25e-05,2]
[347023488,1735473038858,-500.0,9.25e-05,2]
[347023489,1735473038867,-500.0,9.25e-05,2]
[347023490,1735473038877,-500.0,9.25e-05,2]
[347023491,1735473038888,-1020.48,9.25e-05,2]
[347023492,1735473038899,-500.0,9.25e-05,2]
[347023493,1735473038908,-500.0,9.25e-05,2]
[347023494,1735473038918,-500.0,9.25e-05,2]
[347023495,1735473038927,-500.0,9.25e-05,2]
[347023496,1735473038937,-173.81079846,9.25e-05,2]
[347023497,1735473038946,-500.0,9.25e-05,2]
[347023498,1735473038955,-500.0,9.25e-05,2]
[347023499,1735473038965,-500.0,9.25e-05,2]
[347023500,1735473038974,-528.89,9.25e-05,2]
[347023501,1735473038985,-210.17025868,9.251e-05,2]
[347023502,1735473038994,-500.0,9.251e-05,2]
[347023503,1735473039003,-288.53236431,9.251e-05,2]
[347023504,1735473039013,-430.44877041,9.251e-05,2]
[347023505,1735473039025,-69.55122959,9.251e-05,2]
[347023506,1735473039035,-500.0,9.251e-05,2]
[347023507,1735473039044,-500.0,9.251e-05,2]
[347023508,1735473039053,-501.83513903,9.251e-05,2]
[347023509,1735473039063,-247.10149344,9.251e-05,2]
[347023510,1735473039072,-579.19863533,9.251e-05,2]
[347023511,1735473039081,-500.0,9.251e-05,2]
[347023512,1735473039091,-502.15083437,9.251e-05,2]
[347023513,1735473039101,-500.0,9.251e-05,2]
[347023514,1735473039111,-500.0,9.251e-05,2]
[347023515,1735473039121,-500.0,9.251e-05,2]
[347023516,1735473039131,-500.0,9.251e-05,2]
[347023517,1735473039141,-500.0,9.251e-05,2]
[347023518,1735473039150,-500.0,9.251e-05,2]
[347023519,1735473039159,-500.0,9.251e-05,2]
[347023520,1735473039168,-500.0,9.251e-05,2]
[347023521,1735473039178,-500.0,9.251e-05,2]
[347023522,1735473039188,-354.34053768,9.251e-05,2]
[347023523,1735473039202,-457.40202271,9.251e-05,2]
[347023524,1735473039211,-415.07863044,9.251e-05,2]
[347023525,1735473039220,-500.0,9.251e-05,2]
[347023526,1735473039231,-500.0,9.251e-05,2]
[347023527,1735473039240,-517.39897919,9.251e-05,2]
[347023528,1735473039250,-500.0,9.251e-05,2]
[347023529,1735473039259,-501.01467848,9.251e-05,2]
[347023530,1735473039269,-500.0,9.251e-05,2]
[347023531,1735473039279,-500.0,9.251e-05,2]
[347023532,1735473039288,-500.0,9.251e-05,2]
[347023533,1735473039297,-500.0,9.251e-05,2]
[347023534,1735473039307,-500.0,9.251e-05,2]
[347023535,1735473039317,-507.72780485,9.251e-05,2]
[347023536,1735473039326,-500.0,9.251e-05,2]
[347023537,1735473039335,-504.32997768,9.251e-05,2]
[347023538,1735473039344,-500.0,9.251e-05,2]
[347023539,1735473039354,-244.75750517,9.251e-05,2]
[347023540,1735473039363,-500.89231329,9.251e-05,2]
[347023541,1735473039372,-500.0,9.251e-05,2]
[347023542,1735473039382,-500.0,9.251e-05,2]
[347023543,1735473039392,-561.8715722,9.251e-05,2]
[347023544,1735473039401,-501.68849599,9.251e-05,2]
[347023545,1735473039411,-500.0,9.251e-05,2]
[347023546,1735473039420,-500.0,9.251e-05,2]
[347023547,1735473039429,-500.46783122,9.251e-05,2]
[347023548,1735473039439,-500.0,9.251e-05,2]
[347023549,1735473039448,-500.0,9.251e-05,2]
[347023550,1735473039458,-500.0,9.251e-05,2]
[347023551,1735473039467,-500.0,9.251e-05,2]
[347023552,1735473039476,-500.0,9.251e-05,2]
[347023553,1735473039485,-500.0,9.251e-05,2]
[347023554,1735473039494,-500.0,9.251e-05,2]
[347023555,1735473039503,-500.0,9.251e-05,2]
[347023556,1735473039512,-500.0,9.251e-05,2]
[347023557,1735473039521,-500.0,9.251e-05,2]
[347023558,1735473039531,-500.0,9.251e-05,2]
[347023559,1735473039539,-500.0,9.251e-05,2]
[347023560,1735473039548,-500.0,9.251e-05,2]
[347023561,1735473039558,-500.0,9.251e-05,2]
[347023562,1735473039567,-500.59192339,9.251e-05,2]